{"text_format":"3","workbook":"xlsx","n_sheets":1,"sheets":["Izveštaj o troškovima"],"not_rendered":{"defined_names":4},"read":"whole","date_system":"1900"}

{"sheet":"Izveštaj o troškovima","index":0,"n_rows":14,"n_cols":14,"rows_kept":14,"merged":[[0,1,0,5],[2,3,2,5],[2,6,2,7],[2,8,2,10],[4,3,4,5],[4,6,4,7],[4,8,4,10]]}
[null,"Izveštaj o putnim troškovima"]
[]
[null,"Ime","Mirjana Ralević","Odobrio/la",null,null,"Jovan Simić",null,"Nadoknada putnih troškova",null,null,{"v":0.32,"d":"0.32 RSD"}]
[]
[null,"Sektor","Prodaja","Datum slanja",null,null,{"$f":"TODAY()","v":"2018-01-19"},null,"Ukupna nadoknada",null,null,{"$f":"UkupnaNadoknada","v":{"v":53985.98666666667,"d":"53,985.99 RSD"}}]
[]
[null,"Period",{"$f":"IF(MIN(B10:B13)=MAX(B10:B13),TEXT(MIN(B10:B13),\"d.m.yy.\"),\"Od \"&TEXT(MIN(B10:B13),\"d.m.yy.\")&\" do \"&TEXT(MAX(B10:B13),\"d.m.yy.\"))","v":"Od 20.12.17. do 25.12.17."}]
[]
[null,"Datum","Opis troška","Avionska karta","Smeštaj","Drumski prevoz Prevoz \n(Gorivo, iznajmljeni automobil, taksi)","Obroci i napojnice","Konferencije i seminari","Kilometara","Nadoknada putnih troškova","Razno","Devizni kurs valute","Valuta troškova","Ukupno"]
[null,{"$f":"TODAY()-30","v":"2017-12-20"},"Put do kancelarije klijenta",{"v":350,"d":"350.00"},{"v":150,"d":"150.00"},{"v":45,"d":"45.00"},{"v":12,"d":"12.00"},{"v":50,"d":"50.00"},{"v":35,"d":"35.00"},{"$f":"IF('Izveštaj o troškovima'!I10<>\"\",'Izveštaj o troškovima'!I10*CenaPoKilometru,\"\")","v":{"v":11.200000000000001,"d":"11.20"}},null,{"v":0.012,"d":"0.01"},"CAD",{"$f":"IFERROR(IF(OR('Izveštaj o troškovima'!$L10=\"\",'Izveštaj o troškovima'!$L10=1),SUM('Izveštaj o troškovima'!$J10:$K10,'Izveštaj o troškovima'!$D10:$H10)*1,SUM('Izveštaj o troškovima'!$J10:$K10,'Izveštaj o troškovima'!$D10:$H10)/'Izveštaj o troškovima'!$L10),\"\")","v":{"v":51516.66666666667,"d":"51,516.67 RSD"}}]
[null,{"$f":"TODAY()-30","v":"2017-12-20"},"Ručak sa klijentom",{"$nulls":3},{"v":24.3,"d":"24.30"},null,{"v":12,"d":"12.00"},{"$f":"IF('Izveštaj o troškovima'!I11<>\"\",'Izveštaj o troškovima'!I11*CenaPoKilometru,\"\")","v":3.84},null,{"v":0.012,"d":"0.01"},"CAD",{"$f":"IFERROR(IF(OR('Izveštaj o troškovima'!$L11=\"\",'Izveštaj o troškovima'!$L11=1),SUM('Izveštaj o troškovima'!$J11:$K11,'Izveštaj o troškovima'!$D11:$H11)*1,SUM('Izveštaj o troškovima'!$J11:$K11,'Izveštaj o troškovima'!$D11:$H11)/'Izveštaj o troškovima'!$L11),\"\")","v":{"v":2345,"d":"2,345.00 RSD"}}]
[null,"2017-12-20","Popodnevni seminar",{"$nulls":4},{"v":100,"d":"100.00"},{"v":6,"d":"6.00"},{"$f":"IF('Izveštaj o troškovima'!I12<>\"\",'Izveštaj o troškovima'!I12*CenaPoKilometru,\"\")","v":1.92},null,{"v":1,"d":"1.00"},"RSD",{"$f":"IFERROR(IF(OR('Izveštaj o troškovima'!$L12=\"\",'Izveštaj o troškovima'!$L12=1),SUM('Izveštaj o troškovima'!$J12:$K12,'Izveštaj o troškovima'!$D12:$H12)*1,SUM('Izveštaj o troškovima'!$J12:$K12,'Izveštaj o troškovima'!$D12:$H12)/'Izveštaj o troškovima'!$L12),\"\")","v":{"v":101.92,"d":"101.92 RSD"}}]
[null,{"$f":"TODAY()-25","v":"2017-12-25"},"Put do aerodroma",{"$nulls":5},{"v":70,"d":"70.00"},{"$f":"IF('Izveštaj o troškovima'!I13<>\"\",'Izveštaj o troškovima'!I13*CenaPoKilometru,\"\")","v":{"v":22.400000000000002,"d":"22.40"}},null,{"v":1,"d":"1.00"},"RSD",{"$f":"IFERROR(IF(OR('Izveštaj o troškovima'!$L13=\"\",'Izveštaj o troškovima'!$L13=1),SUM('Izveštaj o troškovima'!$J13:$K13,'Izveštaj o troškovima'!$D13:$H13)*1,SUM('Izveštaj o troškovima'!$J13:$K13,'Izveštaj o troškovima'!$D13:$H13)/'Izveštaj o troškovima'!$L13),\"\")","v":{"v":22.400000000000002,"d":"22.40 RSD"}}]
[null,"Ukupno",null,{"$f":"SUBTOTAL(109,Troškovi[Avionska karta])","v":{"v":350,"d":"350.00"}},{"$f":"SUBTOTAL(109,Troškovi[Smeštaj])","v":{"v":150,"d":"150.00"}},{"$f":"SUBTOTAL(109,Troškovi[Drumski prevoz Prevoz \n(Gorivo, iznajmljeni automobil, taksi)])","v":{"v":45,"d":"45.00"}},{"$f":"SUBTOTAL(109,Troškovi[Obroci i napojnice])","v":{"v":36.3,"d":"36.30"}},{"$f":"SUBTOTAL(109,Troškovi[Konferencije i seminari])","v":{"v":150,"d":"150.00"}},{"$f":"SUBTOTAL(109,Troškovi[Kilometara])","v":{"v":123,"d":"123.00"}},{"$f":"SUBTOTAL(109,Troškovi[Nadoknada putnih troškova])","v":39.36},{"$f":"SUBTOTAL(109,Troškovi[Razno])","v":{"v":0,"d":"0.00"}},null,null,{"$f":"SUBTOTAL(109,Troškovi[Ukupno])","v":{"v":53985.98666666667,"d":"53,985.99 RSD"}}]